fUST/lending_fUST_20251215
["ID","MTS","AMOUNT","RATE_DAILY","PERIOD"]
[398514081,1765771832161,-152.44,0.000121,2]
[398514083,1765771832170,-152.44,0.000122,2]
[398514085,1765771832178,-152.44,0.000122,2]
[398514086,1765771832187,-36.42974482,0.000123,2]
[398514089,1765771832201,-116.01025518,0.000123,2]
[398514091,1765771832211,-152.44,0.000123,2]
[398514093,1765771832220,-284.75,0.00012313,2]
[398514095,1765771832229,-152.44,0.000124,2]
[398514097,1765771832238,-4.8597524,0.000124,2]
[398514139,1765771838055,-147.5802476,0.000124,2]
[398514141,1765771838065,-152.44,0.000125,2]
[398514143,1765771838074,-152.44,0.000125,2]
[398514145,1765771838083,-152.44,0.000126,2]
[398514147,1765771838092,-152.44,0.000126,2]
[398514149,1765771838101,-152.44,0.000127,2]
[398514151,1765771838110,-152.44,0.000127,2]
[398514153,1765771838119,-2204.1817847,0.00012732,2]
[398514154,1765771838128,-152.44,0.000128,2]
[398514156,1765771838138,-152.44,0.000128,2]
[398514158,1765771838147,-152.44,0.000129,2]
[398514160,1765771838156,-152.44,0.000129,2]
[398514161,1765771838165,-152.44,0.00013,2]
[398514163,1765771838173,-152.44,0.00013,2]
[398514165,1765771838183,-767.7745138,0.00013048,2]
[398514167,1765771838191,-332.2,0.00013082,2]
[398514169,1765771838200,-152.44,0.000131,2]
[398514170,1765771838209,-152.44,0.000131,2]
[398514171,1765771838219,-152.44,0.000132,2]
[398514172,1765771838228,-152.44,0.000132,2]
[398514173,1765771838237,-300.0,0.00013272,2]
[398514174,1765771838246,-228.0,0.00013272,2]
[398514175,1765771838255,-500.0,0.00013273,2]
[398514176,1765771838264,-251.45625185,0.00013273,2]
[398514177,1765771838275,-248.54374815,0.00013273,2]
[398514178,1765771838285,-500.0,0.00013273,2]
[398514179,1765771838294,-500.0,0.00013273,2]
[398514180,1765771838303,-430.75387517,0.00013273,2]
[398514181,1765771838311,-501.10518498,0.00013273,2]
[398514182,1765771838320,-500.0,0.00013273,2]
[398514183,1765771838329,-500.0,0.00013273,2]
[398514184,1765771838338,-500.0,0.00013273,2]
[398514185,1765771838348,-500.24324975,0.00013273,2]
[398514186,1765771838357,-578.93730346,0.00013273,2]
[398514187,1765771838400,-15.05197001,0.00013273,2]
[398514188,1765771838409,-464.45558847,0.00013273,2]
[398514189,1765771838420,-35.54441153,0.00013273,2]
[398514190,1765771838429,-152.44,0.000133,2]
[398514191,1765771838438,-152.44,0.000133,2]
[398514192,1765771838446,-152.44,0.000134,2]
[398514193,1765771838456,-152.44,0.000134,2]
[398514194,1765771838465,-44.68789932,0.000135,2]
[398514204,1765771840262,-107.75210068,0.000135,2]
[398514205,1765771840271,-152.44,0.000135,2]
[398514206,1765771840281,-152.44,0.000136,2]
[398514207,1765771840290,-152.44,0.000136,2]
[398514208,1765771840300,-1000.0,0.00013699,2]
[398514209,1765771840309,-152.44,0.000137,2]
[398514210,1765771840318,-152.44,0.000137,2]
[398514211,1765771840327,-190.18,0.00013748,2]
[398514212,1765771840335,-152.44,0.000138,2]
[398514213,1765771840344,-152.44,0.000138,2]
[398514214,1765771840353,-500.0,0.00013821,2]
[398514215,1765771840361,-500.0,0.00013821,2]
[398514216,1765771840370,-379.66,0.00013852,2]
[398514217,1765771840379,-152.44,0.000139,2]
[398514218,1765771840388,-152.44,0.000139,2]
[398514219,1765771840397,-300.0,0.00013971,2]
[398514220,1765771840406,-300.0,0.00013971,2]
[398514221,1765771840415,-300.0,0.00013971,2]
[398514222,1765771840424,-300.0,0.00013971,2]
[398514223,1765771840645,-300.0,0.00013971,2]
[398514224,1765771840675,-300.0,0.00013971,2]
[398514225,1765771840685,-300.0,0.00013971,2]
[398514226,1765771840696,-300.0,0.00013971,2]
[398514227,1765771840706,-300.0,0.00013971,2]
[398514228,1765771840715,-300.0,0.00013971,2]
[398514229,1765771840725,-300.0,0.00013971,2]
[398514230,1765771840735,-300.0,0.00013971,2]
[398514231,1765771840745,-300.0,0.00013971,2]
[398514232,1765771840756,-300.0,0.00013971,2]
[398514233,1765771840766,-300.0,0.00013971,2]
[398514234,1765771840775,-152.44,0.00014,2]
[398514235,1765771840786,-152.44,0.00014,2]
[398514236,1765771840795,-232.70986839,0.00014034,2]
[398514237,1765771840804,-214.83799029,0.00014267,2]
[398514238,1765771840813,-16547.44179099,0.00014268,2]
[398514239,1765771840825,-4638.2567345,0.00014268,2]
[398514240,1765771840837,-9156.633293,0.00014268,2]
[398514247,1765771843036,-264.40226042,0.00014268,2]
[398514249,1765771843046,-23493.2860514,0.00014268,2]
[398514250,1765771843127,-5465.64002953,0.00014268,2]
[398514251,1765771843138,-1037.87737539,0.00014268,2]
[398514252,1765771843151,-11874.6777346,0.00014268,2]
[398514255,1765771846173,-879.9514622,0.00014268,2]
[398514513,1765771862156,154.14,0.00012,2]
[398514514,1765771866121,154.13,0.00012,2]
[398514515,1765771867449,150.0,7.884e-05,2]
[398514516,1765771867855,150.0,8.601e-05,2]
[398514517,1765771868402,150.0,9.318e-05,2]
[398514518,1765771868670,150.0,0.00010034,2]
[398514519,1765771869113,150.0,0.00010751,2]
[398514520,1765771869527,150.0,0.00011468,2]
[398514521,1765771926611,154.14,0.00012,2]
[398514522,1765771937643,150.0,7.825e-05,2]
[398514523,1765771937888,150.0,8.536e-05,2]
[398514524,1765771938302,150.0,9.247e-05,2]
[398514525,1765771938704,150.0,9.959e-05,2]
[398514526,1765771939452,150.0,0.0001067,2]
[398514527,1765771940353,150.0,0.00011381,2]
[398514528,1765771982529,-191.61332045,0.00012192,2]
[398514529,1765771986130,154.14,0.00012,2]
[398514530,1765772004003,150.0,7.867e-05,2]
[398514531,1765772004472,150.0,8.582e-05,2]
[398514532,1765772004831,150.0,9.297e-05,2]
[398514533,1765772005252,150.0,0.00010012,2]
[398514534,1765772005663,150.0,0.00010727,2]
[398514535,1765772006095,150.0,0.00011442,2]
[398514536,1765772046188,154.14,0.00012,2]
[398514537,1765772070099,150.0,7.85e-05,2]
[398514538,1765772070519,150.0,8.563e-05,2]
[398514539,1765772070940,150.0,9.277e-05,2]
[398514540,1765772071395,150.0,9.991e-05,2]
[398514541,1765772071788,150.0,0.00010704,2]
[398514542,1765772072166,150.0,0.00011418,2]
[398514543,1765772105159,154.14,0.00012,2]
[398514545,1765772136940,150.0,7.871e-05,2]
[398514546,1765772137380,150.0,8.586e-05,2]
[398514547,1765772137806,150.0,9.302e-05,2]
[398514548,1765772138184,150.0,0.00010017,2]
[398514549,1765772138575,150.0,0.00010733,2]
[398514550,1765772164769,154.14,0.00012,2]
[398514551,1765772224799,154.14,0.00012,2]
[398514552,1765772284183,154.14,0.00012,2]
[398514553,1765772298500,-5000.0,0.0001287,2]
[398514554,1765772305028,-187.78105404,0.0001307,2]
[398514555,1765772305058,-300.0,0.0001327,2]
[398514556,1765772305352,-500.0,0.00013271,2]
[398514557,1765772305383,-349.19369085,0.00013271,2]
[398514558,1765772305415,-500.0,0.00013271,2]
[398514559,1765772305445,-500.0,0.00013271,2]
[398514560,1765772305477,-500.0,0.00013271,2]
[398514561,1765772305508,-332.75463236,0.00013271,2]
[398514562,1765772305536,-165.20621247,0.00013271,2]
[398514563,1765772305565,-400.4323735,0.00013271,2]
[398514564,1765772306634,2529.27407356,0.00012939,2]
[398514565,1765772312120,-2470.72592644,0.00012939,2]
[398514566,1765772330449,150.0,7.858e-05,2]
[398514567,1765772330872,229.23,8.572e-05,2]
[398514568,1765772331286,343.84,9.287e-05,2]
[398514569,1765772331699,458.46,0.00010001,2]
[398514570,1765772332084,573.07,0.00010715,2]
[398514571,1765772332574,687.69,0.0001143,2]
[398514572,1765772332938,802.3,0.00012144,2]
[398514573,1765772333428,916.91,0.00012858,2]
[398514574,1765772344216,154.02,0.00012,2]
[398514575,1765772344502,154.02,0.000123,2]
[398514576,1765772345187,154.02,0.000125,2]
[398514577,1765772345337,154.02,0.000128,2]
[398514578,1765772405932,154.03,0.00012,2]
[398514579,1765772406245,154.03,0.000125,2]
[398514580,1765772407307,150.0,7.812e-05,2]
[398514581,1765772408246,239.77,8.522e-05,2]
[398514582,1765772408450,154.02,0.00012,2]
[398514583,1765772408515,359.66,9.232e-05,2]
[398514584,1765772408827,479.54,9.942e-05,2]
[398514585,1765772409227,599.43,0.00010652,2]
[398514586,1765772409646,719.31,0.00011362,2]
[398514587,1765772410052,839.2,0.00012072,2]
[398514588,1765772410476,959.09,0.00012783,2]
[398514589,1765772426740,-604.0,0.00013,2]
[398514590,1765772426770,-154.03,0.00013,2]
[398514591,1765772426799,-3483.95,0.0001314,2]
[398514592,1765772437803,-1516.05,0.0001314,2]
[398514593,1765772437831,-300.0,0.00013272,2]
[398514594,1765772456990,5000.0,0.00013273,2]
[398514595,1765772464173,154.03,0.000111,2]
[398514596,1765772464780,1213.88,0.00013273,2]
[398514597,1765772484841,150.0,7.89e-05,2]
[398514598,1765772485135,199.03,8.607e-05,2]
[398514599,1765772485537,298.54,9.324e-05,2]
[398514600,1765772485932,398.06,0.00010041,2]
[398514601,1765772486413,497.57,0.00010759,2]
[398514602,1765772487029,597.09,0.00011476,2]
[398514603,1765772487254,696.6,0.00012193,2]
[398514604,1765772504258,-796.12,0.0001291,2]
[398514605,1765772504292,-3407.77,0.0001314,2]
[398514606,1765772523175,157.56,0.00012,2]
[398514607,1765772542365,-1592.23,0.0001314,2]
[398514608,1765772542393,-300.0,0.00013272,2]
[398514609,1765772542424,-2429.43,0.00013273,2]
[398514610,1765772549583,-5000.0,0.00013009,2]
[398514611,1765772558308,-1356.69,0.00013273,2]
[398514612,1765772560510,150.0,7.887e-05,2]
[398514613,1765772560906,150.0,8.605e-05,2]
[398514614,1765772561309,177.01,9.322e-05,2]
[398514615,1765772561760,236.01,0.00010039,2]
[398514616,1765772562124,295.02,0.00010756,2]
[398514617,1765772562564,354.02,0.00011473,2]
[398514618,1765772562966,413.02,0.0001219,2]
[398514619,1765772563435,472.03,0.00012907,2]
[398514620,1765772568392,5000.0,0.00013273,2]
[398514621,1765772576060,39.52,0.00013273,2]
[398514623,1765772599891,-5000.0,0.00010989,2]
[398514624,1765772612636,-157.56,0.000111,2]
[398514625,1765772612914,-300.0,0.00013272,2]
[398514626,1765772612942,-4124.41,0.00013273,2]
[398514628,1765772621157,-5000.0,0.00010989,2]
[398514629,1765772634223,0.01,7.897e-05,2]
[398514630,1765772634248,149.99,7.897e-05,2]
[398514631,1765772634620,210.59,8.615e-05,2]
[398514632,1765772645312,-155.23,0.000111,2]
[398514633,1765772645344,-155.22,0.000111,2]
[398514634,1765772645649,-4379.11,0.00013009,2]
[398514635,1765772652560,-620.89,0.00013009,2]
[398514636,1765772652588,-3758.23,0.0001314,2]
[398514637,1765772657864,315.89,9.333e-05,2]
[398514638,1765772661445,-421.18,0.00010051,2]
[398514639,1765772661478,-526.48,0.00010768,2]
[398514640,1765772661515,-631.77,0.00011486,2]
[398514641,1765772661548,-737.07,0.00012204,2]
[398514642,1765772661581,-842.36,0.00012922,2]
[398514643,1765772665278,-5000.0,0.00013009,2]
[398514644,1765772673345,-1241.77,0.0001314,2]
[398514645,1765772673372,-300.0,0.00013272,2]
[398514646,1765772673400,-836.07,0.00013273,2]
[398514647,1765772673428,-184.02543296,0.00013273,2]
[398514648,1765772673454,-500.0,0.00013273,2]
[398514649,1765772673482,-504.41811205,0.00013273,2]
[398514650,1765772673510,-504.06134986,0.00013273,2]
[398514651,1765772673537,-500.09975796,0.00013273,2]
[398514652,1765772673564,-359.12069434,0.00013273,2]
[398514653,1765772681025,-140.87930566,0.00013273,2]
[398514654,1765772681055,-500.0,0.00013273,2]
[398514655,1765772681084,-500.0,0.00013273,2]
[398514656,1765772681114,-500.0,0.00013273,2]
[398514657,1765772681143,-367.48813148,0.00013286,2]
[398514658,1765772681173,-366.65826502,0.00013341,2]
[398514659,1765772681561,5000.0,0.0001314,2]
[398514660,1765772690742,249.95859568,0.00013341,2]
[398514661,1765772690764,4750.04140432,0.00013341,2]
[398514662,1765772703682,151.54,0.000111,2]
[398514663,1765772704353,151.54,0.000114,2]
[398514664,1765772704428,151.54,0.000117,2]
[398514665,1765772704655,151.54,0.000121,2]
[398514666,1765772704980,151.54,0.000124,2]
[398514667,1765772705233,151.54,0.000127,2]
[398514668,1765772705434,4340.72859568,0.00013341,2]
[398514673,1765772710591,-151.54,0.00013,2]
[398514676,1765772714515,-5000.0,0.00012903,2]
[398514682,1765772733231,261.84,7.992e-05,2]
[398514683,1765772733645,523.68,8.718e-05,2]
[398514684,1765772734064,785.52,9.445e-05,2]
[398514685,1765772734777,1047.36,0.00010171,2]
[398514686,1765772734879,1309.19,0.00010898,2]
[398514687,1765772736339,5000.0,0.00010989,2]
[398514688,1765772738171,-196.66406024,0.00011624,2]
[398514689,1765772740286,-371.93756581,0.00011624,2]
[398514690,1765772742559,-500.0,0.00011624,2]
[398514691,1765772743700,-239.72608566,0.00011624,2]
[398514692,1765772770994,-154.31,0.000111,2]
[398514693,1765772771018,-154.31,0.000113,2]
[398514694,1765772771044,-121.5634341,0.000116,2]
[398514695,1765772773704,-32.7465659,0.000116,2]
[398514696,1765772773730,-262.70228829,0.00011624,2]
[398514697,1765772773752,-115.29102562,0.000118,2]
[398514698,1765772811242,218.66,7.113e-05,2]
[398514699,1765772811646,437.31,7.76e-05,2]
[398514700,1765772812083,416.45,8.407e-05,2]
[398514701,1765772812109,239.52,8.407e-05,2]
[398514702,1765772812460,874.62,9.053e-05,2]
[398514703,1765772812915,1093.28,9.7e-05,2]
[398514704,1765772813385,1311.93,0.00010347,2]
[398514705,1765772816596,-284.2171598,0.00010993,2]
[398514706,1765772819371,-658.18999563,0.00010993,2]
[398514707,1765772820846,-200.71541942,0.00010993,2]
[398514708,1765772823352,-218.29978092,0.00010993,2]
[398514709,1765772823402,284.2171598,0.00010989,2]
[398514710,1765772826215,-164.56013049,0.00010993,2]
[398514711,1765772846037,-4.60751374,0.00010993,2]
[398514712,1765772846060,-155.78,0.000111,2]
[398514713,1765772846342,-155.78,0.000113,2]
[398514714,1765772846366,-18.52339111,0.000115,2]
[398514717,1765772866176,1000.0,0.00016,60]
[398514720,1765772889204,160.8,7.121e-05,2]
[398514721,1765772889648,321.6,7.768e-05,2]
[398514722,1765772890018,-154.36,0.000111,2]
[398514723,1765772890046,-5.1,0.000113,2]
[398514724,1765772890125,482.39,8.416e-05,2]
[398514725,1765772890458,643.19,9.063e-05,2]
[398514726,1765772891326,803.99,9.711e-05,2]
[398514727,1765772891742,964.79,0.00010358,2]
[398514728,1765772893454,-363.29,0.00011005,2]
[398514729,1765772895021,-156.42,0.00011005,2]
[398514730,1765772896991,-152.80000003,0.00011005,2]
[398514731,1765772899211,-282.20775618,0.00011005,2]
[398514732,1765772900770,-170.87224379,0.00011005,2]
[398514733,1765772900793,-79.06298445,0.000113,2]
[398514738,1765772954516,-160.74,0.000111,2]
[398514739,1765772954545,-4678.53,0.00011187,2]
[398514740,1765772957184,-321.47,0.00011187,2]
[398514741,1765772957217,-160.74,0.000114,2]
[398514742,1765772957248,-180.3449243,0.0001157,2]
[398514743,1765772957281,-1286.39,0.00011653,2]
[398514744,1765772957313,-160.74,0.000117,2]
[398514745,1765772957346,-160.74,0.00012,2]
[398514746,1765772957378,-1447.18,0.000123,2]
[398514747,1765772957410,-160.74,0.000123,2]
[398514748,1765772957440,-160.74,0.000126,2]
[398514749,1765772957712,-3075.9263314,0.00012623,2]
[398514750,1765772957873,-636.5879925,0.00012725,2]
[398514751,1765772958209,-1273.175985,0.00012725,2]
[398514752,1765772965281,150.0,7.096e-05,2]
[398514753,1765772965678,172.13,7.741e-05,2]
[398514754,1765772966371,258.2,8.387e-05,2]
[398514755,1765772966518,344.26,9.032e-05,2]
[398514756,1765772966902,430.33,9.677e-05,2]
[398514757,1765772967293,516.4,0.00010322,2]
[398514758,1765772967689,602.46,0.00010967,2]
[398514759,1765772968463,345.9028402,0.00010989,2]
[398514760,1765772968488,4654.0971598,0.00010989,2]
[398514763,1765772977270,-688.53,0.00011612,2]
[398514764,1765772977305,-774.6,0.00012257,2]
[398514765,1765772977525,-2546.35197,0.00012725,2]
[398514766,1765772977758,-4907.30606,0.00012725,2]
[398514767,1765772977789,-24.65788,0.000128,2]
[398514768,1765772986842,-5000.0,0.00012672,2]
[398514769,1765772986910,-136.08212,0.000128,2]
[398514770,1765772986940,-860.66,0.00012902,2]
[398514771,1765772986968,-227.51981626,0.00013033,2]
[398514772,1765772987563,-7559.97586819,0.00013034,2]
[398514773,1765772990241,-10000.01,0.00013034,2]
[398514774,1765772990354,-10000.01,0.00013034,2]
[398514775,1765772990477,-2440.00413181,0.00013034,2]
[398514776,1765772990507,-160.74,0.000131,2]
[398514777,1765772990536,-500.0,0.00013273,2]
[398514778,1765772990565,-500.0,0.00013273,2]
[398514779,1765772990592,-527.03161684,0.00013273,2]
[398514780,1765772990620,-500.0,0.00013273,2]
[398514781,1765772990648,-84.47362567,0.00013318,2]
[398514782,1765772990757,-575.51125136,0.00013318,2]
[398514783,1765772996737,-5000.0,0.00012903,2]
[398514786,1765773000461,0.01,0.00012774,2]
[398514787,1765773000487,4999.99,0.00012774,2]
[398514788,1765773005128,153.23,0.000111,2]
[398514789,1765773005482,153.23,0.000112,2]
[398514790,1765773005776,153.23,0.000113,2]
[398514791,1765773006155,153.23,0.000114,2]
[398514792,1765773006453,153.23,0.000115,2]
[398514793,1765773006851,153.23,0.000116,2]
[398514794,1765773007165,153.23,0.000117,2]
[398514798,1765773007783,153.23,0.000119,2]
[398514799,1765773008020,153.23,0.00012,2]
[398514800,1765773008227,3620.95,0.00013318,2]
[398514801,1765773008250,1379.05,0.00013318,2]
[398514802,1765773008282,153.23,0.000121,2]
[398514803,1765773008556,153.23,0.000122,2]
[398514804,1765773008840,153.23,0.000123,2]
[398514805,1765773009151,153.23,0.000124,2]
[398514806,1765773009444,153.23,0.000125,2]
[398514807,1765773009724,153.23,0.000126,2]
[398514808,1765773009852,500.0,0.00013273,2]
[398514809,1765773010018,153.23,0.000127,2]
[398514810,1765773010944,153.23,0.000128,2]
[398514811,1765773011278,153.23,0.000129,2]
[398514812,1765773011573,153.23,0.00013,2]
[398514813,1765773011956,153.23,0.000131,2]
[398514814,1765773012262,153.23,0.000133,2]
[398514815,1765773012625,-1000.0,0.00013341,2]
[398514816,1765773012654,-560.49150415,0.00013341,2]
[398514817,1765773012686,-610.0,0.00013341,2]
[398514818,1765773013606,500.0,0.00013273,2]
[398514819,1765773016252,5000.0,0.00013318,2]
[398514820,1765773020447,159.0269917,0.00013273,2]
[398514821,1765773020469,340.9730083,0.00013273,2]
[398514822,1765773025249,5000.0,0.00013341,2]
[398514830,1765773032238,-153.23,0.000134,2]
[398514831,1765773032247,-174.72799869,0.00013462,2]
[398514836,1765773032298,-125.27200131,0.00013462,2]
[398514837,1765773032307,-178.14290411,0.00013462,2]
[398514961,1765773038295,-739.69517309,0.00013266,2]
[398514964,1765773038336,-4260.30482691,0.00013266,2]
[398514966,1765773038345,-121.85709589,0.00013462,2]
[398514967,1765773038355,-300.0,0.00013462,2]
[398514969,1765773038364,-300.0,0.00013462,2]
[398514971,1765773038373,-300.0,0.00013462,2]
[398514972,1765773038382,-300.0,0.00013462,2]
[398514974,1765773038391,-300.0,0.00013462,2]
[398514975,1765773038401,-300.0,0.00013462,2]
[398514977,1765773038410,-300.0,0.00013462,2]
[398514979,1765773038420,-300.0,0.00013462,2]
[398514980,1765773038429,-300.0,0.00013462,2]
[398514982,1765773038438,-300.0,0.00013462,2]
[398514983,1765773038448,-300.0,0.00013462,2]
[398514985,1765773038457,-300.0,0.00013462,2]
[398514987,1765773038467,-300.0,0.00013462,2]
[398514988,1765773038476,-153.23,0.000135,2]
[398514990,1765773038485,-212.80701067,0.0001357,2]
[398514991,1765773038494,-2089.261852,0.00013573,2]
[398514993,1765773038504,-153.23,0.000136,2]
[398514995,1765773038513,-984.871646,0.00013699,2]
[398514996,1765773038523,-153.23,0.000137,2]
[398514997,1765773038532,-600.0,0.0001373,2]
[398514998,1765773038541,-466.1773316,0.00013762,2]
[398515000,1765773038551,-153.23,0.000138,2]
[398515001,1765773038561,-500.0,0.00013821,2]
[398515002,1765773038571,-500.0,0.00013821,2]
[398515003,1765773038580,-500.0,0.00013821,2]
[398515004,1765773038589,-153.23,0.000139,2]
[398515005,1765773038599,-218.48690695,0.00013915,2]
[398515006,1765773038608,-1173.30644806,0.00013962,2]
[398515007,1765773038618,-153.23,0.00014,2]
[398515008,1765773038627,-159.26387138,0.00014019,2]
[398515009,1765773038636,-82831.85843045,0.0001402,2]
[398515010,1765773039229,288.77,7.848e-05,2]
[398515011,1765773039663,577.54,8.561e-05,2]
[398515012,1765773040071,866.31,9.275e-05,2]
[398515013,1765773040727,1155.08,9.988e-05,2]
[398515014,1765773041025,-3e-08,0.0001402,2]
[398515015,1765773041135,1443.85,0.00010702,2]
[398515017,1765773043386,-295.4200003,0.00011415,2]
[398515025,1765773067575,-558.54229619,0.00011301,2]
[398515026,1765773067608,-1437.1999997,0.00011415,2]
[398515027,1765773067640,-2021.39,0.00012129,2]
[398515028,1765773067839,-2310.16,0.00012842,2]
[398515031,1765773124208,199.74,7.801e-05,2]
[398515032,1765773124635,399.49,8.51e-05,2]
[398515033,1765773125050,599.23,9.219e-05,2]
[398515034,1765773125949,798.98,9.928e-05,2]
[398515035,1765773126378,998.72,0.00010637,2]
[398515036,1765773126796,1198.47,0.00011347,2]
[398515037,1765773127270,1398.21,0.00012056,2]
[398515038,1765773127613,1597.96,0.00012765,2]
[398515040,1765773200782,150.0,7.762e-05,2]
[398515041,1765773201192,242.3,8.468e-05,2]
[398515042,1765773201625,363.45,9.173e-05,2]
[398515043,1765773202038,484.6,9.879e-05,2]
[398515044,1765773202462,605.75,0.00010585,2]
[398515045,1765773203322,726.9,0.0001129,2]
[398515046,1765773203623,236.21,0.00011996,2]
[398515047,1765773203650,611.85,0.00011996,2]
[398515048,1765773203775,969.21,0.00012701,2]
[398515049,1765773235775,5000.0,0.00013034,2]
[398515050,1765773237658,-300.0,0.00013272,2]
[398515051,1765773237689,-187.7218856,0.00013272,2]
[398515052,1765773251419,1249.01,0.00013273,2]
[398515053,1765773259202,5000.0,0.00013273,2]
[398515055,1765773278470,150.0,7.8e-05,2]
[398515056,1765773278887,224.48,8.509e-05,2]
[398515057,1765773279384,336.72,9.218e-05,2]
[398515058,1765773279713,448.96,9.928e-05,2]
[398515059,1765773280117,561.2,0.00010637,2]
[398515060,1765773280526,673.44,0.00011346,2]
[398515061,1765773280981,380.7562288,0.00012055,2]
[398515062,1765773281006,404.9237712,0.00012055,2]
[398515063,1765773281366,897.92,0.00012764,2]
[398515064,1765773282581,5000.0,0.00013273,2]
[398515065,1765773290890,3697.1662288,0.00013273,2]
[398515066,1765773290917,1302.8337712,0.00013273,2]
[398515067,1765773291487,-500.0,0.00013273,2]
[398515068,1765773291516,-500.0,0.00013273,2]
[398515069,1765773291544,-500.0,0.00013273,2]
[398515070,1765773291572,-500.0,0.00013273,2]
[398515071,1765773306570,5000.0,0.00013273,2]
[398515072,1765773308789,500.0,0.00013273,2]
[398515073,1765773309276,500.0,0.00013273,2]
[398515074,1765773314392,0.01,0.00013273,2]
[398515075,1765773314421,4999.99,0.00013273,2]
[398515076,1765773322961,827.31339966,0.00013273,2]
[398515077,1765773326321,500.0,0.00013273,2]
[398515078,1765773330991,3672.70660034,0.00013273,2]
[398515079,1765773331017,1327.29339966,0.00013273,2]
[398515080,1765773354211,150.0,7.127e-05,2]
[398515081,1765773354560,205.62,7.775e-05,2]
[398515082,1765773354990,308.42,8.423e-05,2]
[398515083,1765773355403,411.23,9.071e-05,2]
[398515084,1765773355816,514.04,9.719e-05,2]
[398515085,1765773370980,-322.84239743,0.00010366,2]
[398515086,1765773374506,-151.11,0.00010366,2]
[398515087,1765773429860,150.0,7.066e-05,2]
[398515088,1765773430397,153.1,7.709e-05,2]
[398515089,1765773430799,229.64,8.351e-05,2]
[398515090,1765773431214,306.19,8.994e-05,2]
[398515091,1765773431632,382.74,9.636e-05,2]
[398515092,1765773446493,-165.07121776,0.00010278,2]
[398515093,1765773449104,-208.42607273,0.00010278,2]
[398515095,1765773483227,621.0,0.0001,2]
[398515096,1765773506458,150.0,7.047e-05,2]
[398515097,1765773506889,150.0,7.687e-05,2]
[398515098,1765773507319,168.74,8.328e-05,2]
[398515099,1765773507761,224.98,8.969e-05,2]
[398515100,1765773508122,281.23,9.609e-05,2]
[398515101,1765773522071,-316.05463222,0.0001025,2]
[398515102,1765773524152,-21.42536778,0.0001025,2]
[398515103,1765773524174,-138.56421441,0.0001057,2]
[398515104,1765773551058,-252.19467281,0.0001036,2]
[398515105,1765773552467,-184.77859769,0.0001036,2]
[398515106,1765773554427,-259.2758849,0.0001036,2]
[398515107,1765773557656,-167.60864518,0.0001036,2]
[398515108,1765773560225,-151.41,0.0001036,2]
[398515109,1765773563630,-151.41,0.0001036,2]